Workbook

Sheet 2022
A1: 2022年度新能源汽车推广应用补助资金清算审核车辆信息表（第一批）
A2: 地区 | B2: 序号 | C2: 车辆生产企业 | D2: 车辆型号 | E2: 申报推广数 （辆） | F2: 申请补助标准 （万元） | G2: 申请清算资金 （万元） | H2: 核定推广数 （辆） | I2: 核定补助标准 （万元） | J2: 应清算补助资金 （万元） | K2: 按整车企业取整后补助资金（万元） | L2: 核减原因 | M2: 此前待扣回预拨资金（万元） | N2: 此次扣回预拨资金（万元） | O2: 扣回相应预拨资金后剩余资金（万元）
A3: 总计 | E3: =SUM(E4:E2990)/3 -> 660371 | G3: =SUM(G4:G2990)/3 -> 771413.9164 | H3: =SUM(H4:H2990)/3 -> 637393 | J3: =SUM(J4:J2990)/3 -> 747784.0761 | K3: =SUM(K4:K2990)/2 -> 747787 | M3: =SUM(M4:M2990)/2 -> 654417 | N3: =SUM(N4:N2990)/2 -> 455955 | O3: =SUM(O4:O2990)/2 -> 291832
A4: 北京市 | B4: 合计 | E4: =E5+E36+E123 -> 22714 | G4: =G5+G36+G123 -> 28300.5142 | H4: 22453 | J4: 27887.6967 | K4: 27887 | M4: =M5+M36+M123 -> 20815 | N4: =N5+N36+N123 -> 20815 | O4: =O5+O36+O123 -> 7072
B5: 1 | C5: 北京汽车股份有限公司 | D5: 小计 | E5: =SUM(E6:E35) -> 12374 | G5: =SUM(G6:G35) -> 10958.935 | H5: =SUM(H6:H35) -> 12335 | J5: =SUM(J6:J35) -> 10922.8632 | K5: =ROUND(J5,0) -> 10923 | M5: 6505 | N5: =M5 -> 6505 | O5: =K5-N5 -> 4418
D6: BJ7000C5D3-BEV | E6: 91 | F6: 0.7938 | G6: =E6*F6 -> 72.2358 | H6: 91 | I6: 0.7938 | J6: =H6*I6 -> 72.2358
D7: BJ7000C5D3-BEV | E7: 108 | F7: 1.134 | G7: =E7*F7 -> 122.472 | H7: 106 | I7: 1.134 | J7: =H7*I7 -> 120.204 | L7: 核减2辆，原因为：车辆注册登记信息有误
D8: BJ7000C5D4-BEV | E8: 1 | F8: 0.7938 | G8: 0.7938 | H8: 1 | I8: 0.7938 | J8: 0.7938
D9: BJ7000C5D7-BEV | E9: 18 | F9: 0.882 | G9: 15.876 | H9: 18 | I9: 0.882 | J9: 15.876
D10: BJ7000C5D7-BEV | E10: 9 | F10: 1.26 | G10: 11.34 | H10: 9 | I10: 1.26 | J10: 11.34
D11: BJ7000C5D8-BEV | E11: 1 | F11: 1.26 | G11: 1.26 | H11: 1 | I11: 1.26 | J11: 1.26
D12: BJ7000C5DA-BEV | E12: 6 | F12: 0.882 | G12: 5.292 | H12: 6 | I12: 0.882 | J12: 5.292
D13: BJ7000C5DA-BEV | E13: 10 | F13: 1.26 | G13: 12.6 | H13: 10 | I13: 1.26 | J13: 12.6
D14: BJ7000C5DB-BEV | E14: 68 | F14: 0.5096 | G14: 34.6528 | H14: 68 | I14: 0.5096 | J14: 34.6528
D15: BJ7000C5DB-BEV | E15: 74 | F15: 0.728 | G15: 53.872 | H15: 74 | I15: 0.728 | J15: 53.872
D16: BJ7000C5DD-BEV | E16: 2214 | F16: 0.882 | G16: 1952.748 | H16: 2207 | I16: 0.882 | J16: 1946.574 | L16: 核减7辆，原因为：车辆注册登记信息有误
D17: BJ7000C5DD-BEV | E17: 2846 | F17: 1.26 | G17: 3585.96 | H17: 2838 | I17: 1.26 | J17: 3575.88 | L17: 核减8辆，原因为：车辆注册登记信息有误
D18: BJ7000C5DE-BEV | E18: 211 | F18: 0.5096 | G18: 107.5256 | H18: 208 | I18: 0.5096 | J18: 105.9968 | L18: 核减3辆，原因为：车辆注册登记信息有误
D19: BJ7000C5DE-BEV | E19: 6469 | F19: 0.728 | G19: 4709.432 | H19: 6456 | I19: 0.728 | J19: 4699.968 | L19: 核减13辆，原因为：车辆注册登记信息有误
D20: BJ7000C5DF-BEV | E20: 10 | F20: 0.882 | G20: 8.82 | H20: 10 | I20: 0.882 | J20: 8.82
D21: BJ7000C5DF-BEV | E21: 9 | F21: 1.26 | G21: 11.34 | H21: 8 | I21: 1.26 | J21: 10.08 | L21: 核减1辆，原因为：需进一步核实后予以清算
D22: BJ7000C5DH-BEV | E22: 69 | F22: 0.882 | G22: 60.858 | H22: 68 | I22: 0.882 | J22: 59.976 | L22: 核减1辆，原因为：车辆注册登记信息有误
D23: BJ7000C5DH-BEV | E23: 59 | F23: 1.26 | G23: 74.34 | H23: 56 | I23: 1.26 | J23: 70.56 | L23: 核减3辆，原因为：车辆注册登记信息有误,需进一步核实后予以清算
D24: BJ7001U5E2-BEV | E24: 1 | F24: 0.635 | G24: 0.635 | H24: 1 | I24: 0.635 | J24: 0.635
D25: BJ7003U3D2-BEV | E25: 2 | F25: 0.635 | G25: 1.27 | H25: 1 | I25: 0.635 | J25: 0.635 | L25: 核减1辆，原因为：车辆注册登记信息有误
D26: BJ7003U3D2-BEV | E26: 1 | F26: 0.9072 | G26: 0.9072 | H26: 1 | I26: 0.9072 | J26: 0.9072
D27: BJ7000C5D3-BEV | E27: 26 | F27: 1.134 | G27: 29.484 | H27: 26 | I27: 1.134 | J27: 29.484
D28: BJ7000C5D7-BEV | E28: 17 | F28: 1.26 | G28: 21.42 | H28: 17 | I28: 1.26 | J28: 21.42
D29: BJ7000C5DA-BEV | E29: 2 | F29: 1.26 | G29: 2.52 | H29: 2 | I29: 1.26 | J29: 2.52
D30: BJ7000C5DB-BEV | E30: 1 | F30: 0.728 | G30: 0.728 | H30: 1 | I30: 0.728 | J30: 0.728
D31: BJ7000C5DD-BEV | E31: 6 | F31: 1.26 | G31: 7.56 | H31: 6 | I31: 1.26 | J31: 7.56
D32: BJ7000C5DE-BEV | E32: 1 | F32: 0.728 | G32: 0.728 | H32: 1 | I32: 0.728 | J32: 0.728
D33: BJ7000C5DF-BEV | E33: 12 | F33: 1.26 | G33: 15.12 | H33: 12 | I33: 1.26 | J33: 15.12
D34: BJ7000C5DH-BEV | E34: 23 | F34: 1.26 | G34: 28.98 | H34: 23 | I34: 1.26 | J34: 28.98
D35: BJ7003U3D2-BEV | E35: 9 | F35: 0.9072 | G35: 8.1648 | H35: 9 | I35: 0.9072 | J35: 8.1648
B36: 2 | C36: 北汽福田汽车股份有限公司 | D36: 小计 | E36: =SUM(E37:E122) -> 10284 | G36: =SUM(G37:G122) -> 17274.0964 | H36: =SUM(H37:H122) -> 10062 | J36: =SUM(J37:J122) -> 16897.3507 | K36: =ROUND(J36,0) -> 16897 | M36: 14310 | N36: =M36 -> 14310 | O36: =K36-N36 -> 2587
D37: BJ1030EVJA7 | E37: 9 | F37: 0.68 | G37: =E37*F37 -> 6.12 | H37: 8 | I37: 0.68 | J37: =H37*I37 -> 5.44 | L37: 核减1辆，原因为：车辆注册登记信息有误
D38: BJ1030EVJA7 | E38: 6 | F38: 0.9737 | G38: 5.8422 | H38: 6 | I38: 0.9737 | J38: 5.8422
D39: BJ1031EVJA3 | E39: 2 | F39: 0.68 | G39: 1.36 | H39: 2 | I39: 0.68 | J39: 1.36
D40: BJ1031EVJA3 | E40: 110 | F40: 0.7902 | G40: 86.922 | H40: 110 | I40: 0.7902 | J40: 86.922
D41: BJ1031EVJA3 | E41: 28 | F41: 0.9737 | G41: 27.2636 | H41: 28 | I41: 0.9737 | J41: 27.2636
D42: BJ1031EVJA3 | E42: 93 | F42: 1.1314 | G42: 105.2202 | H42: 93 | I42: 1.1314 | J42: 105.2202
D43: BJ1032EVJA1 | E43: 9 | F43: 0.9803 | G43: 8.8227 | H43: 9 | I43: 0.9803 | J43: 8.8227
D44: BJ1032EVJA1 | E44: 103 | F44: 1.4036 | G44: 144.5708 | H44: 103 | I44: 1.4036 | J44: 144.5708
D45: BJ1044EVAA | E45: 5 | F45: 2.5268 | G45: 12.634 | H45: 5 | I45: 2.5268 | J45: 12.634
D46: BJ1045EVJA10 | E46: 2 | F46: 1.428 | G46: 2.856 | H46: 2 | I46: 1.428 | J46: 2.856
D47: BJ1045EVJA10 | E47: 9 | F47: 2.0447 | G47: 18.4023 | H47: 9 | I47: 2.0447 | J47: 18.4023
D48: BJ1045EVJA9 | E48: 7 | F48: 1.8427 | G48: 12.8989 | H48: 6 | I48: 1.8427 | J48: 11.0562 | L48: 核减1辆，原因为：车辆注册登记信息有误
D49: BJ1045EVJA9 | E49: 3 | F49: 2.6384 | G49: 7.9152 | H49: 3 | I49: 2.6384 | J49: 7.9152
D50: BJ1045EVJAK | E50: 11 | F50: 1.7647 | G50: 19.4117 | H50: 11 | I50: 1.7647 | J50: 19.4117
D51: BJ1045EVJAK | E51: 52 | F51: 2.5268 | G51: 131.3936 | H51: 50 | I51: 2.5268 | J51: 126.34 | L51: 核减2辆，原因为：车辆注册登记信息有误
D52: BJ3319EVPA1 | E52: 12 | F52: 2.8 | G52: 33.6 | H52: 12 | I52: 2.8 | J52: 33.6
D53: BJ3319EVPA2 | E53: 19 | F53: 2.8 | G53: 53.2 | H53: 18 | I53: 2.8 | J53: 50.4 | L53: 核减1辆，原因为：车辆注册登记信息有误
D54: BJ4259EVPA1 | E54: 209 | F54: 2.8 | G54: 585.2 | H54: 209 | I54: 2.8 | J54: 585.2
D55: BJ5030CCYEV7 | E55: 4 | F55: 0.68 | G55: 2.72 | H55: 4 | I55: 0.68 | J55: 2.72
D56: BJ5030CCYEV7 | E56: 1 | F56: 0.9737 | G56: 0.9737 | H56: 1 | I56: 0.9737 | J56: 0.9737
D57: BJ5030XXYEV7 | E57: 45 | F57: 0.68 | G57: 30.6 | H57: 45 | I57: 0.68 | J57: 30.6
D58: BJ5030XXYEV7 | E58: 10 | F58: 0.9737 | G58: 9.737 | H58: 10 | I58: 0.9737 | J58: 9.737
D59: BJ5031CCYEV3 | E59: 12 | F59: 0.7907 | G59: 9.4884 | H59: 12 | I59: 0.7907 | J59: 9.4884
D60: BJ5031CCYEV3 | E60: 14 | F60: 1.1321 | G60: 15.8494 | H60: 14 | I60: 1.1321 | J60: 15.8494
D61: BJ5031XXYEV3 | E61: 15 | F61: 0.68 | G61: 10.2 | H61: 15 | I61: 0.68 | J61: 10.2
D62: BJ5031XXYEV3 | E62: 474 | F62: 0.7902 | G62: 374.5548 | H62: 472 | I62: 0.7902 | J62: 372.9744 | L62: 核减2辆，原因为：车辆注册登记信息有误
D63: BJ5031XXYEV3 | E63: 7 | F63: 0.9737 | G63: 6.8159 | H63: 7 | I63: 0.9737 | J63: 6.8159
D64: BJ5031XXYEV3 | E64: 81 | F64: 1.1314 | G64: 91.6434 | H64: 81 | I64: 1.1314 | J64: 91.6434
D65: BJ5032XXYEV1 | E65: 24 | F65: 0.9803 | G65: 23.5272 | H65: 23 | I65: 0.9803 | J65: 22.5469 | L65: 核减1辆，原因为：车辆注册登记信息有误
D66: BJ5032XXYEV1 | E66: 6 | F66: 1.4036 | G66: 8.4216 | H66: 6 | I66: 1.4036 | J66: 8.4216
D67: BJ5038XXYEV1 | E67: 30 | F67: 0.68 | G67: 20.4 | H67: 30 | I67: 0.68 | J67: 20.4
D68: BJ5038XXYEV1 | E68: 6 | F68: 0.9737 | G68: 5.8422 | H68: 6 | I68: 0.9737 | J68: 5.8422
D69: BJ5038XXYEV2 | E69: 335 | F69: 0.8159 | G69: =E69*F69 -> 273.3265 | H69: 332 | I69: 0.8159 | J69: =H69*I69 -> 270.8788 | L69: 核减3辆，原因为：车辆注册登记信息有误
D70: BJ5038XXYEV2 | E70: 754 | F70: 1.1682 | G70: 880.8228 | H70: 754 | I70: 1.1682 | J70: 880.8228
D71: BJ5038XXYEV4 | E71: 172 | F71: 0.68 | G71: 116.96 | H71: 172 | I71: 0.68 | J71: 116.96
D72: BJ5038XXYEV4 | E72: 429 | F72: 0.9737 | G72: 417.7173 | H72: 429 | I72: 0.9737 | J72: 417.7173
D73: BJ5039XXYEV6 | E73: 1147 | F73: 0.884 | G73: 1013.948 | H73: 1091 | I73: 0.884 | J73: 964.444 | L73: 核减56辆，原因为：车辆注册登记信息有误
D74: BJ5039XXYEV6 | E74: 1469 | F74: 1.2657 | G74: 1859.3133 | H74: 1414 | I74: 1.2657 | J74: 1789.6998 | L74: 核减55辆，原因为：车辆注册登记信息有误
D75: BJ5039XXYEV8 | E75: 4 | F75: 0.884 | G75: 3.536 | H75: 4 | I75: 0.884 | J75: 3.536
D76: BJ5039XXYEV8 | E76: 2 | F76: 1.2657 | G76: 2.5314 | H76: 2 | I76: 1.2657 | J76: 2.5314
D77: BJ5039XXYEVA | E77: 25 | F77: 0.7367 | G77: 18.4175 | H77: 14 | I77: 0.7367 | J77: 10.3138 | L77: 核减11辆，原因为：车辆注册登记信息有误
D78: BJ5039XXYEVA | E78: 153 | F78: 0.884 | G78: 135.252 | H78: 141 | I78: 0.884 | J78: 124.644 | L78: 核减12辆，原因为：车辆注册登记信息有误
D79: BJ5039XXYEVA | E79: 152 | F79: 1.0548 | G79: 160.3296 | H79: 148 | I79: 1.0548 | J79: 156.1104 | L79: 核减4辆，原因为：车辆注册登记信息有误
D80: BJ5039XXYEVA | E80: 378 | F80: 1.2657 | G80: 478.4346 | H80: 355 | I80: 1.2657 | J80: 449.3235 | L80: 核减23辆，原因为：车辆注册登记信息有误
D81: BJ5045CCYEV | E81: 17 | F81: 1.428 | G81: 24.276 | H81: 17 | I81: 1.428 | J81: 24.276
D82: BJ5045CCYEV | E82: 360 | F82: 2.0447 | G82: 736.092 | H82: 357 | I82: 2.0447 | J82: 729.9579 | L82: 核减3辆，原因为：车辆注册登记信息有误
D83: BJ5045CCYEVK | E83: 44 | F83: 1.7647 | G83: 77.6468 | H83: 44 | I83: 1.7647 | J83: 77.6468
D84: BJ5045CCYEVK | E84: 365 | F84: 2.5268 | G84: 922.282 | H84: 363 | I84: 2.5268 | J84: 917.2284 | L84: 核减2辆，原因为：车辆注册登记信息有误
D85: BJ5045XLCEVK | E85: 15 | F85: 1.7647 | G85: 26.4705 | H85: 15 | I85: 1.7647 | J85: 26.4705
D86: BJ5045XLCEVK | E86: 64 | F86: 2.5268 | G86: 161.7152 | H86: 64 | I86: 2.5268 | J86: 161.7152
D87: BJ5045XXYEV10 | E87: 1 | F87: 1.428 | G87: 1.428 | H87: 1 | I87: 1.428 | J87: 1.428
D88: BJ5045XXYEV8 | E88: 152 | F88: 1.428 | G88: 217.056 | H88: 152 | I88: 1.428 | J88: 217.056
D89: BJ5045XXYEV8 | E89: 380 | F89: 2.0447 | G89: 776.986 | H89: 378 | I89: 2.0447 | J89: 772.8966 | L89: 核减2辆，原因为：车辆注册登记信息有误
D90: BJ5045XXYEV9 | E90: 1 | F90: 2.6384 | G90: 2.6384 | H90: 1 | I90: 2.6384 | J90: 2.6384
D91: BJ5045XXYEVC | E91: 1 | F91: 1.8427 | G91: 1.8427 | H91: 1 | I91: 1.8427 | J91: 1.8427
D92: BJ5045XXYEVC | E92: 1 | F92: 2.6384 | G92: 2.6384 | H92: 1 | I92: 2.6384 | J92: 2.6384
D93: BJ5045XXYEVJ | E93: 7 | F93: 1.8427 | G93: 12.8989 | H93: 7 | I93: 1.8427 | J93: 12.8989
D94: BJ5045XXYEVJ | E94: 14 | F94: 2.6384 | G94: 36.9376 | H94: 14 | I94: 2.6384 | J94: 36.9376
D95: BJ5045XXYEVK | E95: 101 | F95: 1.7647 | G95: 178.2347 | H95: 101 | I95: 1.7647 | J95: 178.2347
D96: BJ5045XXYEVK | E96: 1413 | F96: 2.5268 | G96: 3570.3684 | H96: 1407 | I96: 2.5268 | J96: 3555.2076 | L96: 核减6辆，原因为：车辆注册登记信息有误
D97: BJ5045XXYEVW | E97: 28 | F97: 2.5268 | G97: 70.7504 | H97: 28 | I97: 2.5268 | J97: 70.7504
D98: BJ5045XXYEVY | E98: 36 | F98: 2.5268 | G98: 90.9648 | H98: 33 | I98: 2.5268 | J98: 83.3844 | L98: 核减3辆，原因为：现场核查不通过
D99: BJ5045ZKXEV10 | E99: 3 | F99: 2.0447 | G99: 6.1341 | H99: 3 | I99: 2.0447 | J99: 6.1341
D100: BJ5048XXYEV3 | E100: 27 | F100: 1.4065 | G100: 37.9755 | H100: 26 | I100: 1.4065 | J100: 36.569 | L100: 核减1辆，原因为：车辆注册登记信息有误
D101: BJ5048XXYEV3 | E101: 98 | F101: 2.0139 | G101: =E101*F101 -> 197.3622 | H101: 91 | I101: 2.0139 | J101: =H101*I101 -> 183.2649 | L101: 核减7辆，原因为：车辆注册登记信息有误
D102: BJ5065XXYEV1 | E102: 3 | F102: 2.6384 | G102: 7.9152 | H102: 3 | I102: 2.6384 | J102: 7.9152
D103: BJ6105EVCA-45 | E103: 78 | F103: 5.8809 | G103: 458.7102 | H103: 78 | I103: 5.8809 | J103: 458.7102
D104: BJ6105EVCA-47 | E104: 3 | F104: 6.48 | G104: 19.44 | H104: 3 | I104: 6.48 | J104: 19.44
D105: BJ6105EVCA-49 | E105: 30 | F105: 6.48 | G105: 194.4 | H105: 29 | I105: 6.48 | J105: 187.92 | L105: 核减1辆，原因为：车辆注册登记信息有误
D106: BJ6105EVCA-53 | E106: 1 | F106: 6.48 | G106: 6.48 | H106: 1 | I106: 6.48 | J106: 6.48
D107: BJ6109EVCA-3 | E107: 86 | F107: 6.48 | G107: 557.28 | H107: 78 | I107: 6.48 | J107: 505.44 | L107: 核减8辆，原因为：车辆注册登记信息有误
D108: BJ6117EVCA-1 | E108: 1 | F108: 6.48 | G108: 6.48 | H108: 1 | I108: 6.48 | J108: 6.48
D109: BJ6117EVUA-6 | E109: 6 | F109: 6.48 | G109: 38.88 | H109: 6 | I109: 6.48 | J109: 38.88
D110: BJ6117EVUA-6 | E110: 7 | F110: 6.48 | G110: 45.36 | H110: 2 | I110: 5.04 | J110: 10.08 | L110: 核减5辆，原因为：车辆注册登记信息有误
D111: BJ6117EVUA-7 | E111: 2 | F111: 6.48 | G111: 12.96 | H111: 2 | I111: 6.48 | J111: 12.96
D112: BJ6123CHEVCA-11 | E112: 72 | F112: 1.7397 | G112: 125.2584 | H112: 70 | I112: 1.7397 | J112: 121.779 | L112: 核减2辆，原因为：车辆注册登记信息有误
D113: BJ6123SHEVCA-9 | E113: 94 | F113: 1.3353 | G113: 125.5182 | H113: 94 | I113: 1.3353 | J113: 125.5182
D114: BJ6601EVCA | E114: 17 | F114: 1.8 | G114: 30.6 | H114: 17 | I114: 1.8 | J114: 30.6
D115: BJ6650EVCA-7 | E115: 1 | F115: 1.8 | G115: 1.8 | H115: 1 | I115: 1.8 | J115: 1.8
D116: BJ6805EVCA-30 | E116: 11 | F116: 3.96 | G116: 43.56 | H116: 8 | I116: 3.96 | J116: 31.68 | L116: 核减3辆，原因为：车辆注册登记信息有误
D117: BJ6805EVCA-33 | E117: 27 | F117: 3.96 | G117: 106.92 | H117: 25 | I117: 3.96 | J117: 99 | L117: 核减2辆，原因为：车辆注册登记信息有误
D118: BJ6816EVCA-1 | E118: 48 | F118: 3.96 | G118: 190.08 | H118: 45 | I118: 3.96 | J118: 178.2 | L118: 核减3辆，原因为：车辆注册登记信息有误
D119: BJ6816EVUA | E119: 10 | F119: 3.96 | G119: 39.6 | H119: 10 | I119: 3.96 | J119: 39.6
D120: BJ6851EVCA-30 | E120: 107 | F120: 3.96 | G120: 423.72 | H120: 107 | I120: 3.96 | J120: 423.72
D121: BJ6851EVCA-31 | E121: 87 | F121: 3.96 | G121: 344.52 | H121: 85 | I121: 3.96 | J121: 336.6 | L121: 核减2辆，原因为：车辆注册登记信息有误
D122: BJ6851EVCA-39 | E122: 27 | F122: 3.96 | G122: 106.92 | H122: 27 | I122: 3.96 | J122: 106.92
B123: 3 | C123: 北京新能源汽车股份有限公司 | D123: 小计 | E123: =SUM(E124:E128) -> 56 | G123: =SUM(G124:G128) -> 67.4828 | H123: =SUM(H124:H128) -> 56 | J123: =SUM(J124:J128) -> 67.4828 | K123: =ROUND(J123,0) -> 67 | M123: 0 | N123: =M123 -> 0 | O123: =K123-N123 -> 67
D124: BJ7000C5EB-BEV | E124: 1 | F124: 0.6552 | G124: =E124*F124 -> 0.6552 | H124: 1 | I124: 0.6552 | J124: =H124*I124 -> 0.6552
D125: BJ7000C5ED-BEV | E125: 3 | F125: 0.6552 | G125: =E125*F125 -> 1.9656 | H125: 3 | I125: 0.6552 | J125: =H125*I125 -> 1.9656
D126: BJ7000USD1-BEV | E126: 50 | F126: 1.26 | G126: =E126*F126 -> 63 | H126: 50 | I126: 1.26 | J126: =H126*I126 -> 63
D127: BJ7000USD2-BEV | E127: 1 | F127: 1.134 | G127: =E127*F127 -> 1.134 | H127: 1 | I127: 1.134 | J127: =H127*I127 -> 1.134
D128: BJ7000USD3-BEV | E128: 1 | F128: 0.728 | G128: =E128*F128 -> 0.728 | H128: 1 | I128: 0.728 | J128: =H128*I128 -> 0.728
A129: 天津市 | B129: 合计 | E129: =E130 -> 58 | G129: =G130 -> 33.6196 | H129: 58 | J129: 33.6196 | K129: 34 | M129: =M130 -> 0 | N129: =N130 -> 0 | O129: =O130 -> 34
B130: 1 | C130: 一汽丰田汽车有限公司 | D130: 小计 | E130: =SUM(E131:E134) -> 58 | G130: =SUM(G131:G134) -> 33.6196 | H130: =SUM(H131:H134) -> 58 | J130: =SUM(J131:J134) -> 33.6196 | K130: =ROUND(J130,0) -> 34 | M130: 0 | N130: =M130 -> 0 | O130: =K130-N130 -> 34
D131: TV7001BEV | E131: 12 | F131: 1.008 | G131: =E131*F131 -> 12.096 | H131: 12 | I131: 1.008 | J131: =H131*I131 -> 12.096
D132: TV7186HEV6 | E132: 3 | F132: 0.3332 | G132: =E132*F132 -> 0.9996 | H132: 3 | I132: 0.3332 | J132: =H132*I132 -> 0.9996
D133: TV7186HEV6 | E133: 41 | F133: 0.476 | G133: =E133*F133 -> 19.516 | H133: 41 | I133: 0.476 | J133: =H133*I133 -> 19.516
D134: TV7186HEV6 | E134: 2 | F134: 0.504 | G134: =E134*F134 -> 1.008 | H134: 2 | I134: 0.504 | J134: =H134*I134 -> 1.008
A135: 河北省 | B135: 合计 | E135: =E136+E176 -> 9741 | G135: =G136+G176 -> 9286.0943 | H135: 9671 | J135: 9206.3169 | K135: 9206 | M135: =M136+M176 -> 7701 | N135: =N136+N176 -> 6819 | O135: =O136+O176 -> 2387
B136: 1 | C136: 河北长安汽车有限公司 | D136: 小计 | E136: =SUM(E137:E175) -> 6787 | G136: =SUM(G137:G175) -> 6162.2511 | H136: =SUM(H137:H175) -> 6717 | J136: =SUM(J137:J175) -> 6082.4737 | K136: =ROUND(J136,0) -> 6082 | M136: 3695 | N136: =M136 -> 3695 | O136: =K136-N136 -> 2387
D137: SC1022DEAABEV | E137: 15 | F137: 0.5947 | G137: =E137*F137 -> 8.9205 | H137: 15 | I137: 0.5947 | J137: =H137*I137 -> 8.9205
D138: SC1022DEAABEV | E138: 43 | F138: 0.8516 | G138: 36.6188 | H138: 42 | I138: 0.8516 | J138: 35.7672 | L138: 核减1辆，原因为：车辆注册登记信息有误
D139: SC1032DBACBEV | E139: 87 | F139: 0.6801 | G139: 59.1687 | H139: 87 | I139: 0.6801 | J139: 59.1687
D140: SC1032DBACBEV | E140: 172 | F140: 0.9737 | G140: 167.4764 | H140: 172 | I140: 0.9737 | J140: 167.4764
D141: SC1032DBADBEV | E141: 101 | F141: 0.8159 | G141: 82.4059 | H141: 100 | I141: 0.8159 | J141: 81.59 | L141: 核减1辆，原因为：车辆注册登记信息有误
D142: SC1032DBADBEV | E142: 51 | F142: 1.1683 | G142: 59.5833 | H142: 49 | I142: 1.1683 | J142: 57.2467 | L142: 核减2辆，原因为：车辆注册登记信息有误
D143: SC1032SBACBEV | E143: 74 | F143: 0.8159 | G143: 60.3766 | H143: 74 | I143: 0.8159 | J143: 60.3766
D144: SC1032SBACBEV | E144: 5 | F144: 1.1683 | G144: 5.8415 | H144: 5 | I144: 1.1683 | J144: 5.8415
D145: SC5021XXYAAABEV | E145: 140 | F145: 0.6319 | G145: 88.466 | H145: 138 | I145: 0.6319 | J145: 87.2022 | L145: 核减2辆，原因为：需进一步核实后予以清算
D146: SC5021XXYAAABEV | E146: 147 | F146: 0.9048 | G146: 133.0056 | H146: 145 | I146: 0.9048 | J146: 131.196 | L146: 核减2辆，原因为：需进一步核实后予以清算
D147: SC5021XXYAABBEV | E147: 437 | F147: 0.6801 | G147: 297.2037 | H147: 434 | I147: 0.6801 | J147: 295.1634 | L147: 核减3辆，原因为：车辆注册登记信息有误
D148: SC5021XXYAABBEV | E148: 203 | F148: 0.9737 | G148: 197.6611 | H148: 202 | I148: 0.9737 | J148: 196.6874 | L148: 核减1辆，原因为：车辆注册登记信息有误
D149: SC5021XXYAACBEV | E149: 159 | F149: 0.6801 | G149: 108.1359 | H149: 158 | I149: 0.6801 | J149: 107.4558 | L149: 核减1辆，原因为：车辆注册登记信息有误
D150: SC5021XXYAACBEV | E150: 84 | F150: 0.9737 | G150: 81.7908 | H150: 82 | I150: 0.9737 | J150: 79.8434 | L150: 核减2辆，原因为：车辆注册登记信息有误
D151: SC5022XXYDAAABEV | E151: 5 | F151: 0.5947 | G151: 2.9735 | H151: 5 | I151: 0.5947 | J151: 2.9735
D152: SC5022XXYDAAABEV | E152: 1 | F152: 0.8516 | G152: 0.8516 | H152: 1 | I152: 0.8516 | J152: 0.8516
D153: SC5031XLCAAABEV | E153: 3 | F153: 0.7367 | G153: 2.2101 | H153: 3 | I153: 0.7367 | J153: 2.2101
D154: SC5031XXYAAEBEV | E154: 10 | F154: 0.7367 | G154: 7.367 | H154: 9 | I154: 0.7367 | J154: 6.6303 | L154: 核减1辆，原因为：车辆注册登记信息有误
D155: SC5031XXYAAEBEV | E155: 11 | F155: 1.0549 | G155: 11.6039 | H155: 11 | I155: 1.0549 | J155: 11.6039
D156: SC5031XXYAAGBEV | E156: 1704 | F156: 0.7367 | G156: 1255.3368 | H156: 1688 | I156: 0.7367 | J156: 1243.5496 | L156: 核减16辆，原因为：车辆注册登记信息有误
D157: SC5031XXYAAGBEV | E157: 848 | F157: 1.0549 | G157: 894.5552 | H157: 839 | I157: 1.0549 | J157: 885.0611 | L157: 核减9辆，原因为：车辆注册登记信息有误
D158: SC5031XXYAAHBEV | E158: 319 | F158: 0.7367 | G158: 235.0073 | H158: 314 | I158: 0.7367 | J158: 231.3238 | L158: 核减5辆，原因为：车辆注册登记信息有误
D159: SC5031XXYAAHBEV | E159: 157 | F159: 1.0549 | G159: 165.6193 | H159: 157 | I159: 1.0549 | J159: 165.6193
D160: SC5031XXYAAJBEV | E160: 186 | F160: 0.7367 | G160: 137.0262 | H160: 183 | I160: 0.7367 | J160: 134.8161 | L160: 核减3辆，原因为：车辆注册登记信息有误,现场核查不通过
D161: SC5031XXYAAJBEV | E161: 91 | F161: 1.0549 | G161: 95.9959 | H161: 90 | I161: 1.0549 | J161: 94.941 | L161: 核减1辆，原因为：车辆注册登记信息有误
D162: SC5031XXYAAlBEV | E162: 1 | F162: 1.0549 | G162: 1.0549 | H162: 0 | I162: 0 | J162: 0 | L162: 核减1辆，原因为：不在推荐目录内
D163: SC5031XXYAALBEV | E163: 746 | F163: 0.7367 | G163: 549.5782 | H163: 737 | I163: 0.7367 | J163: 542.9479 | L163: 核减9辆，原因为：车辆注册登记信息有误
D164: SC5031XXYAALBEV | E164: 577 | F164: 1.0549 | G164: 608.6773 | H164: 576 | I164: 1.0549 | J164: 607.6224 | L164: 核减1辆，原因为：车辆注册登记信息有误
D165: SC5031XXYAAMBEV | E165: 2 | F165: 0.7367 | G165: 1.4734 | H165: 2 | I165: 0.7367 | J165: 1.4734
D166: SC5031XXYAAMBEV | E166: 4 | F166: 1.0549 | G166: 4.2196 | H166: 4 | I166: 1.0549 | J166: 4.2196
D167: SC5032CCYDBACBEV | E167: 9 | F167: 0.8159 | G167: 7.3431 | H167: 9 | I167: 0.8159 | J167: 7.3431
D168: SC5032CCYDBACBEV | E168: 1 | F168: 1.1683 | G168: 1.1683 | H168: 1 | I168: 1.1683 | J168: 1.1683
D169: SC5032XXYDBACBEV | E169: 48 | F169: 0.6801 | G169: 32.6448 | H169: 48 | I169: 0.6801 | J169: 32.6448
D170: SC5032XXYDBACBEV | E170: 6 | F170: 0.9737 | G170: 5.8422 | H170: 6 | I170: 0.9737 | J170: 5.8422
D171: SC5032XXYDBADBEV | E171: 172 | F171: 0.8159 | G171: 140.3348 | H171: 170 | I171: 0.8159 | J171: 138.703 | L171: 核减2辆，原因为：车辆注册登记信息有误
D172: SC5032XXYDBADBEV | E172: 17 | F172: 1.1683 | G172: 19.8611 | H172: 17 | I172: 1.1683 | J172: 19.8611
D173: SC5033XXYGBEV | E173: 1 | F173: 0.8518 | G173: 0.8518 | H173: 1 | I173: 0.8518 | J173: 0.8518
D174: SC6805EBEV | E174: 101 | F174: 3.96 | G174: 399.96 | H174: 96 | I174: 3.96 | J174: 380.16 | L174: 核减5辆，原因为：车辆注册登记信息有误
D175: SC6805GBEV | E175: 49 | F175: 3.96 | G175: 194.04 | H175: 47 | I175: 3.96 | J175: 186.12 | L175: 核减2辆，原因为：车辆注册登记信息有误
B176: 2 | C176: 长城汽车股份有限公司 | D176: 小计 | E176: =SUM(E177:E205) -> 2954 | G176: =SUM(G177:G205) -> 3123.8432 | H176: =SUM(H177:H205) -> 2954 | J176: =SUM(J177:J205) -> 3123.8432 | K176: =ROUND(J176,0) -> 3124 | M176: 4006 | N176: =K176 -> 3124 | O176: 0
D177: CC6470AP02APHEV | E177: 67 | F177: 0.48 | G177: =E177*F177 -> 32.16 | H177: 67 | I177: 0.48 | J177: =H177*I177 -> 32.16
D178: CC6470AP22APHEV | E178: 10 | F178: 0.48 | G178: 4.8 | H178: 10 | I178: 0.48 | J178: 4.8
D179: CC6490AY02APHEV | E179: 18 | F179: 0.48 | G179: 8.64 | H179: 18 | I179: 0.48 | J179: 8.64
D180: CC7000BH00HABEV | E180: 30 | F180: 1.2474 | G180: 37.422 | H180: 30 | I180: 1.2474 | J180: 37.422
D181: CC7000BH00NABEV | E181: 58 | F181: 1.2474 | G181: 72.3492 | H181: 58 | I181: 1.2474 | J181: 72.3492
D182: CC7000BJ01BBEV | E182: 602 | F182: 1.26 | G182: 758.52 | H182: 602 | I182: 1.26 | J182: 758.52
D183: CC7000BJ01CBEV | E183: 780 | F183: 1.134 | G183: 884.52 | H183: 780 | I183: 1.134 | J183: 884.52
D184: CC7000BJ01GBEV | E184: 69 | F184: 1.008 | G184: 69.552 | H184: 69 | I184: 1.008 | J184: 69.552
D185: CC7000BJ01JBEV | E185: 62 | F185: 1.134 | G185: 70.308 | H185: 62 | I185: 1.134 | J185: 70.308
D186: CC7000BJ02ABEV | E186: 30 | F186: 1.26 | G186: 37.8 | H186: 30 | I186: 1.26 | J186: 37.8
D187: CC7000BJ02EBEV | E187: 175 | F187: 1.26 | G187: 220.5 | H187: 175 | I187: 1.26 | J187: 220.5
D188: CC7000CG00ABEV | E188: 71 | F188: 1.008 | G188: 71.568 | H188: 71 | I188: 1.008 | J188: 71.568
D189: CC7000CG01ABEV | E189: 16 | F189: 1.134 | G189: 18.144 | H189: 16 | I189: 1.134 | J189: 18.144
D190: CC7000ZM00BBEV | E190: 141 | F190: 0.91 | G190: 128.31 | H190: 141 | I190: 0.91 | J190: 128.31
D191: CC7000ZM00CBEV | E191: 82 | F191: 0.91 | G191: 74.62 | H191: 82 | I191: 0.91 | J191: 74.62
D192: CC7000ZM00EBEV | E192: 57 | F192: 0.91 | G192: 51.87 | H192: 57 | I192: 0.91 | J192: 51.87
D193: CC7000ZM00GBEV | E193: 10 | F193: 0.819 | G193: 8.19 | H193: 10 | I193: 0.819 | J193: 8.19
D194: CC7000ZM00KBEV | E194: 104 | F194: 0.91 | G194: 94.64 | H194: 104 | I194: 0.91 | J194: 94.64
D195: CC7000ZM02CBEV | E195: 89 | F195: 0.798 | G195: 71.022 | H195: 89 | I195: 0.798 | J195: 71.022
D196: CC7000ZM02DBEV | E196: 75 | F196: 0.8288 | G196: 62.16 | H196: 75 | I196: 0.8288 | J196: 62.16
D197: CC7000ZM02FBEV | E197: 186 | F197: 0.7636 | G197: 142.0296 | H197: 186 | I197: 0.7636 | J197: 142.0296
D198: CC7000ZM05ABEV | E198: 33 | F198: 1.008 | G198: 33.264 | H198: 33 | I198: 1.008 | J198: 33.264
D199: CC7001CE03BBEV | E199: 5 | F199: 1.26 | G199: 6.3 | H199: 5 | I199: 1.26 | J199: 6.3
D200: CC7001ZM00BBEV | E200: 52 | F200: 0.8232 | G200: 42.8064 | H200: 52 | I200: 0.8232 | J200: 42.8064
... 2790 more rows
